fUSD/lending_fUSD_20241105
["ID","MTS","AMOUNT","RATE_DAILY","PERIOD"]
[341355811,1730825442988,-151.0,0.00043248,14]
[341355813,1730825442997,-151.0,0.00043248,14]
[341355815,1730825443007,-151.0,0.00043248,14]
[341355817,1730825443016,-159.830681,0.00043248,14]
[341355819,1730825443026,-151.0,0.00043248,14]
[341355821,1730825443035,-151.0,0.00043248,14]
[341355823,1730825443045,-151.0,0.00043248,14]
[341355825,1730825443054,-151.0,0.00043248,14]
[341355827,1730825443064,-151.0,0.00043248,14]
[341355829,1730825443073,-151.0,0.00043248,14]
[341355831,1730825443083,-151.0,0.00043248,14]
[341355833,1730825443092,-151.0,0.00043248,14]
[341355835,1730825443102,-151.0,0.00043248,14]
[341355837,1730825443111,-243.907421,0.00043248,14]
[341355839,1730825443121,-151.0,0.00043248,14]
[341355841,1730825443130,-151.0,0.00043248,14]
[341355843,1730825443139,-151.0,0.00043248,14]
[341355845,1730825443149,-151.0,0.00043248,14]
[341355847,1730825443158,-151.0,0.00043248,14]
[341355849,1730825443168,-151.0,0.00043248,14]
[341355851,1730825443177,-211.670008,0.00043248,14]
[341355853,1730825443186,-151.0,0.00043248,14]
[341355855,1730825443198,-151.0,0.00043248,14]
[341355857,1730825443209,-151.0,0.00043248,14]
[341355859,1730825443218,-276.748108,0.00043248,14]
[341355861,1730825443227,-151.0,0.00043248,14]
[341355863,1730825443237,-151.0,0.00043248,14]
[341355865,1730825443246,-151.0,0.00043248,14]
[341355867,1730825443256,-151.0,0.00043248,14]
[341355869,1730825443265,-151.0,0.00043248,14]
[341355871,1730825443274,-151.0,0.00043248,14]
[341355873,1730825443284,-151.0,0.00043248,14]
[341355875,1730825443293,-151.0,0.00043248,14]
[341355877,1730825443302,-151.0,0.00043248,14]
[341355879,1730825443311,-151.0,0.00043248,14]
[341355881,1730825443320,-151.0,0.00043248,14]
[341355883,1730825443329,-151.0,0.00043248,14]
[341355885,1730825443338,-159.400105,0.00043248,14]
[341355887,1730825443347,-1287.79292051,0.00043248,60]
[341355889,1730825443356,-3661.52406582,0.00043248,2]
[341355891,1730825443366,-867.13558678,0.00043248,90]
[341355893,1730825443376,-3087.71693073,0.00043248,30]
[341355895,1730825443385,-495.91923234,0.00043248,30]
[341355897,1730825443395,-1999.999996,0.00043248,120]
[341355899,1730825443404,-370.6378633,0.00043248,30]
[341355900,1730825443413,-2191.85237674,0.00043248,120]
[341355901,1730825443422,-486.10238118,0.00043248,30]
[341355902,1730825443431,-850.2157577,0.00043248,30]
[341355903,1730825443439,-1000.0,0.00043248,30]
[341355904,1730825443453,-2306.35899877,0.00043248,30]
[341355905,1730825443463,-2692.35091841,0.00043248,30]
[341355906,1730825443473,-1601.52193869,0.00043248,120]
[341355907,1730825443482,-1951.30279644,0.00043248,30]
[341355909,1730825443491,-1205.17652666,0.00043248,30]
[341355910,1730825443500,-717.45794355,0.00043248,30]
[341355911,1730825443509,-2303.12863003,0.00043248,120]
[341355913,1730825443519,-3032.24541066,0.00043248,30]
[341355914,1730825443528,-2310.03498068,0.00043248,10]
[341355915,1730825443541,-257.36975277,0.00043248,30]
[341355916,1730825443550,-2500.0,0.00043248,30]
[341355917,1730825443560,-264.31908411,0.00043248,120]
[341355918,1730825443569,-3312.8991934,0.00043248,30]
[341355919,1730825443579,-2353.85153002,0.00043248,30]
[341355920,1730825443587,-819.65613598,0.00043248,120]
[341355921,1730825443596,-197.25104788,0.00043248,120]
[341355922,1730825443605,-9996.480159,0.00043248,2]
[341355923,1730825443615,-832.79570135,0.00043248,30]
[341355924,1730825443628,-1200.0,0.00043248,120]
[341355925,1730825443639,-3000.0,0.00043248,30]
[341355927,1730825443650,-963.28831346,0.00043248,120]
[341355929,1730825443662,-840.76100534,0.00043248,30]
[341355931,1730825443673,-3000.0,0.00043248,120]
[341355933,1730825443682,-436.60604112,0.00043248,120]
[341355935,1730825443691,-3000.0,0.00043248,118]
[341355937,1730825443709,-905.61829534,0.00043248,30]
[341355939,1730825443717,-202.69618011,0.00043248,30]
[341355941,1730825443727,-935.58476151,0.00043248,30]
[341355943,1730825443738,-421.85456338,0.00043248,120]
[341355945,1730825443747,-1864.89999889,0.00043248,120]
[341355947,1730825443756,-225.77377169,0.00043248,30]
[341355949,1730825443767,-341.953299,0.00043248,30]
[341355951,1730825443776,-1424.06172855,0.00043248,120]
[341355953,1730825443785,-1021.98314097,0.00043248,120]
[341355954,1730825443794,-385.29583638,0.00043248,120]
[341355956,1730825443804,-1297.97910714,0.00043248,120]
[341355959,1730825443813,-1818.73699785,0.00043248,120]
[341355961,1730825443823,-5701.42430466,0.00043248,120]
[341355962,1730825443832,-569.69355498,0.00043248,120]
[341355963,1730825443842,-312.88390518,0.00043248,30]
[341355964,1730825443851,-958.02993084,0.00043248,120]
[341355965,1730825443861,-419.33093629,0.00043248,4]
[341355966,1730825443870,-378.3899708,0.00043248,31]
[341355967,1730825443879,-750.0,0.00043248,30]
[341355968,1730825443888,-196.41602671,0.00043248,30]
[341355969,1730825443898,-488.68337399,0.00043248,45]
[341355970,1730825443907,-2121.92442132,0.00043248,120]
[341355971,1730825443916,-311.98037067,0.00043248,120]
[341355972,1730825443926,-1635.35668323,0.00043248,60]
[341355973,1730825443936,-152.02933381,0.00043248,120]
[341355974,1730825443949,-425.97672947,0.00043248,30]
[341355975,1730825443959,-2991.60968472,0.00043248,30]
[341355976,1730825443968,-997.54866944,0.00043248,120]
[341355977,1730825443977,-252.87981276,0.00043248,30]
[341355978,1730825443986,-360.77011674,0.00043248,120]
[341355979,1730825443995,-1312.83679242,0.00043248,30]
[341355980,1730825444005,-2450.87987001,0.00043248,30]
[341355981,1730825444015,-1257.44641849,0.00043248,120]
[341355982,1730825444025,-830.4625651,0.00043248,120]
[341355983,1730825444036,-825.74900833,0.00043248,120]
[341355984,1730825444045,-860.57817074,0.00043248,30]
[341355985,1730825444056,-367.60252037,0.00043248,120]
[341355986,1730825444065,-204.47131371,0.00043248,2]
[341355987,1730825444075,-214.48431365,0.00043248,120]
[341355988,1730825444084,-353.92393411,0.00043248,30]
[341355989,1730825444093,-198.19694415,0.00043248,30]
[341355990,1730825444102,-1239.84035891,0.00043248,120]
[341355991,1730825444111,-1963.30459641,0.00043248,120]
[341355992,1730825444120,-221.82651248,0.00043248,30]
[341355993,1730825444130,-2010.79513168,0.00043248,30]
[341355994,1730825444139,-1643.74626316,0.00043248,120]
[341355995,1730825444148,-291.84197493,0.00043248,120]
[341355996,1730825444157,-279.01128312,0.00043248,30]
[341355997,1730825444166,-2591.10052451,0.00043248,30]
[341355998,1730825444175,-1446.80196916,0.00043248,120]
[341355999,1730825444185,-259.59905058,0.00043248,30]
[341356000,1730825444196,-2617.12298915,0.00043248,30]
[341356001,1730825444208,-765.51764482,0.00043248,30]
[341356002,1730825444218,-156.68986179,0.00043248,60]
[341356003,1730825444227,-425.39785925,0.00043248,30]
[341356004,1730825444237,-219.91210787,0.00043248,45]
[341356005,1730825444247,-696.58507881,0.00043248,120]
[341356006,1730825444257,-1719.39112723,0.00043248,30]
[341356007,1730825444266,-2261.61532121,0.00043248,30]
[341356008,1730825444275,-260.38136996,0.00043248,120]
[341356009,1730825444285,-3185.0187023,0.00043248,30]
[341356010,1730825444294,-706.14657863,0.00043248,30]
[341356011,1730825444303,-299.40346603,0.00043248,120]
[341356012,1730825444313,-228.10014363,0.00043248,120]
[341356013,1730825444322,-3497.37037696,0.00043248,120]
[341356014,1730825444332,-150.82136322,0.00043248,120]
[341356015,1730825444342,-1423.55915549,0.00043248,30]
[341356016,1730825444354,-2469.94190691,0.00043248,30]
[341356017,1730825444365,-1294.44779688,0.00043248,120]
[341356018,1730825444375,-283.20708577,0.00043248,120]
[341356019,1730825444385,-417.16396589,0.00043248,120]
[341356020,1730825444397,-1085.38020697,0.00043248,30]
[341356021,1730825444407,-1250.22010586,0.00043248,120]
[341356022,1730825444417,-293.85448441,0.00043248,30]
[341356023,1730825444427,-2136.26121415,0.00043248,30]
[341356024,1730825444437,-1091.61442183,0.00043248,120]
[341356025,1730825444449,-209.92221587,0.00043248,120]
[341356026,1730825444458,-506.3733148,0.00043248,120]
[341356027,1730825444467,-275.0,0.00043248,30]
[341356028,1730825444475,-2160.74969292,0.00043248,30]
[341356029,1730825444484,-1704.41748649,0.00043248,30]
[341356030,1730825444493,-2255.21130886,0.00043248,3]
[341356031,1730825444502,-490.20712852,0.00043248,120]
[341356032,1730825444511,-2010.17972067,0.00043248,30]
[341356033,1730825444521,-809.92990007,0.00043248,30]
[341356034,1730825444530,-3000.0,0.00043248,120]
[341356035,1730825444544,-1000.0,0.00043248,120]
[341356036,1730825444553,-50000.0,0.00043248,15]
[341356037,1730825444562,-50000.0,0.00043248,16]
[341356038,1730825444571,-50000.0,0.00043248,17]
[341356039,1730825444582,-50000.0,0.00043248,18]
[341356040,1730825444591,-50000.0,0.00043248,19]
[341356041,1730825444600,-50000.0,0.00043248,20]
[341356042,1730825444611,-50000.0,0.00043248,34]
[341356043,1730825444623,-50000.0,0.00043248,35]
[341356044,1730825444633,-50000.0,0.00043248,36]
[341356045,1730825444643,-50000.0,0.00043248,37]
[341356046,1730825444652,-50000.0,0.00043248,38]
[341356047,1730825444662,-150.0,0.00043248,30]
[341356048,1730825444671,-967.70192902,0.00043248,120]
[341356049,1730825444683,-428.65112,0.00043248,30]
[341356050,1730825444698,-65561.33931441,0.00043248,50]
[341356051,1730825444708,-2944.18402376,0.00043248,30]
[341356052,1730825444717,-2325.96135757,0.00043248,30]
[341356053,1730825444726,-2992.89290369,0.00043248,30]
[341356054,1730825444882,-105265.11309088,0.00043248,30]
[341356055,1730825444892,-504.67305666,0.00043248,2]
[341356056,1730825444902,-6914.77825593,0.00043248,30]
[341356057,1730825444911,-1128.6569,0.00043248,30]
[341356058,1730825444922,-2480.11577085,0.00043248,120]
[341356059,1730825444931,-175.16875396,0.00043248,60]
[341356060,1730825444941,-150.0,0.00043248,2]
[341356061,1730825444952,-150.0,0.00043258,2]
[341356062,1730825444962,-150.0,0.00043259,2]
[341356063,1730825444971,-150.0,0.00043266,2]
[341356064,1730825444981,-3692.86431433,0.00043275,30]
[341356065,1730825444991,-151.0,0.00043275,14]
[341356066,1730825445000,-151.0,0.00043275,14]
[341356067,1730825445010,-151.0,0.00043275,14]
[341356068,1730825445020,-151.0,0.00043275,14]
[341356069,1730825445030,-151.0,0.00043275,14]
[341356070,1730825445040,-2000.0,0.00043299,30]
[341356071,1730825445051,-300.0,0.000433,30]
[341356072,1730825445060,-150.0,0.00043301,2]
[341356073,1730825445071,-1500.0,0.00043305,7]
[341356074,1730825445081,-150.0,0.00043339,2]
[341356075,1730825445091,-1500.0,0.00043377,7]
[341356076,1730825445101,-150.0,0.00043396,2]
[341356077,1730825445110,-158.68,0.000434,30]
[341356078,1730825445120,-68999.00205521,0.000434,30]
[341356079,1730825445130,-156.125,0.000434,120]
[341356080,1730825445139,-1182.95141666,0.00043411,30]
[341356081,1730825445148,-161.28784114,0.00043411,30]
[341356082,1730825445158,-373.17,0.00043436,2]
[341356083,1730825445167,-150.0,0.00043453,2]
[341356084,1730825445176,-150.0,0.00043478,2]
[341356085,1730825445185,-150.0,0.00043482,2]
[341356086,1730825445195,-2806.15860885,0.00043498,42]
[341356087,1730825445204,-9300.7646766,0.00043499,120]
[341356089,1730825445460,-951.50250522,0.00036661,2]
[341356090,1730825445470,-72.9883687,0.00043248,14]
[341356091,1730825445482,-78.0116313,0.00043248,14]
[341356092,1730825445491,-416.5923687,0.00043499,120]
[341356093,1730825445506,-151.0,0.00043248,14]
[341356094,1730825445516,-6737.92200746,0.00043499,120]
[341356097,1730825445754,-219.72321346,0.00027279,2]
[341356098,1730825445764,-118.10142582,0.00027279,2]
[341356099,1730825445787,-612.34796662,0.00027279,2]
[341356100,1730825445797,-791.2,0.0003677,10]
[341356101,1730825445807,-151.0,0.00043248,14]
[341356102,1730825445818,-151.0,0.00043248,14]
[341356103,1730825445829,-151.0,0.00043248,14]
[341356104,1730825445840,-151.0,0.00043248,14]
[341356105,1730825445850,-151.0,0.000434,14]
[341356106,1730825445860,-4877.83203338,0.00043499,120]
[341356107,1730825446000,-398.82874,0.00035616,7]
[341356108,1730825446010,-500.0,0.00035616,7]
[341356109,1730825446020,-500.0,0.00041095,120]
[341356110,1730825446031,-151.0,0.000434,14]
[341356111,1730825446041,-1005.2966153,0.00043499,120]
[341356112,1730825446068,-500.0,0.00041096,120]
[341356113,1730825446078,-2989.93202244,0.00043499,120]
[341356114,1730825446090,-35123.0,0.00043499,120]
[341356122,1730826025180,208.64,0.0002376,30]
[341356124,1730826351650,-158.62,0.00015342,2]
[341356125,1730826351674,-155.98,0.00015342,2]
[341356141,1730826541354,185.4,0.00019725,2]
[341356184,1730826631694,-300.0,0.00019725,2]
[341356186,1730826631703,-250.0,0.00021,2]
[341356187,1730826631712,-420.0,0.00021484,2]
[341356188,1730826631724,-177.76,0.00021918,2]
[341356189,1730826631735,-300.0,0.00023,2]
[341356190,1730826631745,-587.0,0.00023401,2]
[341356191,1730826631755,-26069.230062,0.0002376,2]
[341356192,1730826631778,-472.90059883,0.0002376,2]
[341356253,1730826637782,-467.86933917,0.0002376,2]
[341356254,1730826637791,-2985.06742655,0.0002376,2]
[341356255,1730826637800,-500.0,0.000238,2]
[341356256,1730826637810,-350.0,0.00025,2]
[341356257,1730826637819,-728.0,0.00025488,2]
[341356258,1730826637828,-400.0,0.00027,2]
[341356259,1730826637838,-450.0,0.00029,2]
[341356260,1730826637848,-235.548,0.0003,2]
[341356261,1730826637857,-1072.348,0.00030158,2]
[341356262,1730826637867,-150.0,0.00030158,2]
[341356263,1730826637879,-1547.0,0.000303,2]
[341356264,1730826637888,-813.0,0.00031086,2]
[341356265,1730826637899,-813.097,0.00031086,2]
[341356266,1730826637908,-235.548,0.00031496,2]
[341356267,1730826637918,-2435.09,0.00031496,2]
[341356268,1730826637928,-737.8083,0.000319,2]
[341356269,1730826637937,-1007.92,0.00032,2]
[341356270,1730826637948,-150.0,0.00033,14]
[341356271,1730826637958,-150.0,0.00033158,2]
[341356272,1730826637967,-590.878,0.00034086,2]
[341356273,1730826637977,-153.0,0.00036055,2]
[341356274,1730826637986,-153.0,0.00036265,2]
[341356275,1730826637995,-158.23,0.000368,31]
[341356276,1730826638004,-496.94201766,0.000372,103]
[341356277,1730826638013,-496.94201766,0.000372,103]
[341356278,1730826638023,-250.6,0.0003764,2]
[341356279,1730826638032,-420.97537191,0.00038,120]
[341356280,1730826638041,-170.3297781,0.00038,120]
[341356281,1730826638051,-158.23,0.000386,31]
[341356282,1730826638060,-158.23,0.000386,31]
[341356283,1730826638071,-151.8,0.00038673,2]
[341356284,1730826638080,-496.94201766,0.00038892,113]
[341356285,1730826638089,-500.0,0.00039203,2]
[341356286,1730826638098,-1756.98,0.00039247,2]
[341356287,1730826638108,-211.92,0.00039415,2]
[341356288,1730826638117,-310.79,0.00039725,120]
[341356289,1730826638127,-200.0,0.0003973,2]
[341356290,1730826638137,-1500.0,0.00039843,2]
[341356291,1730826638151,-250.6,0.00039904,2]
[341356292,1730826638160,-168.73,0.00039911,120]
[341356294,1730826638169,-356.14,0.00039918,2]
[341356296,1730826638179,-23900.0,0.00039918,2]
[341356297,1730826638188,-150.0,0.0003994,2]
[341356298,1730826638197,-420.97537191,0.0004,120]
[341356299,1730826638207,-170.3297781,0.0004,120]
[341356300,1730826638216,-250.0,0.00040027,120]
[341356301,1730826638225,-211.92,0.00040048,2]
[341356302,1730826638234,-158.58,0.0004007,2]
[341356303,1730826638243,-250.0,0.00040137,2]
[341356304,1730826638252,-158.23,0.000403,31]
[341356305,1730826638261,-158.23,0.000403,31]
[341356306,1730826638271,-288.79,0.00040448,2]
[341356307,1730826638280,-172.74,0.00040527,2]
[341356308,1730826638289,-1776.4775,0.00040665,7]
[341356309,1730826638298,-1702.923,0.00040665,7]
[341356310,1730826638307,-211.92,0.00040682,2]
[341356311,1730826638315,-2296.11,0.0004104,2]
[341356312,1730826638325,-150.0,0.00041063,2]
[341356313,1730826638336,-2401.17,0.0004109,2]
[341356314,1730826638346,-157.0,0.00041096,2]
[341356315,1730826638355,-150.0,0.00041096,2]
[341356316,1730826638365,-305.78,0.00041098,10]
[341356317,1730826638375,-1728.0,0.000411,7]
[341356318,1730826638384,-663.41,0.00041104,2]
[341356319,1730826638394,-3530.4231489,0.00041108,30]
[341356322,1730826638542,-13045.9838511,0.00041108,30]
[341356323,1730826638552,-2500.0,0.00041167,2]
[341356324,1730826638561,-5000.0,0.00041212,2]
[341356325,1730826638570,-5000.0,0.00041277,2]
[341356326,1730826638579,-2034.0861489,0.00041291,2]
[341356327,1730826638591,-759.77742422,0.00041291,2]
[341356346,1730826639658,-500.0,0.0004007,2]
[341356348,1730826639667,-150.0,0.0004007,2]
[341356350,1730826639677,-1013.87642688,0.00041291,2]
[341356352,1730826639686,-1472.04009412,0.00041293,2]
[341356410,1730826641457,150.0,0.00016011,5]
[341356411,1730826642644,-500.0,0.00040682,2]
[341356412,1730826642656,-15020.15953234,0.00041293,2]
[341356413,1730826642700,-150.0,0.00040682,2]
[341356414,1730826642709,-2641.20102912,0.00041293,2]
[341356415,1730826642954,-1598.17452019,0.00041293,2]
[341356418,1730826645743,-235.6595,0.0003,2]
[341356419,1730826645753,-235.6595,0.00031162,2]
[341356420,1730826645763,-500.0,0.00041104,2]
[341356421,1730826645772,-17.45594581,0.00041293,2]
[341356422,1730826645784,-4250.96887842,0.00041293,2]
[341356423,1730826645794,-2292.43,0.00041294,2]
[341356424,1730826645803,-211.92,0.00041315,2]
[341356425,1730826645812,-1679.22046659,0.00041316,15]
[341356426,1730826645822,-1559.52,0.0004136,2]
[341356427,1730826645831,-1398.16,0.00041364,2]
[341356428,1730826645841,-809.16,0.00041368,2]
[341356429,1730826645850,-235.548,0.00041416,14]
[341356430,1730826645859,-152.0,0.0004146,3]
[341356431,1730826645868,-5000.0,0.00041479,2]
[341356432,1730826645879,-2436.95,0.00041502,2]
[341356433,1730826645889,-437.02899208,0.00041573,31]
[341356434,1730826645900,-9278.99,0.00041574,2]
[341356435,1730826645909,-5000.0,0.00041604,2]
[341356436,1730826645919,-150.0,0.00041623,2]
[341356437,1730826645928,-160.96,0.00041624,120]
[341356438,1730826645937,-3072.74366371,0.00041655,2]
[341356439,1730826645960,-423.09718292,0.00041655,2]
[341356637,1730827116743,-157.58,0.00015342,2]
[341356639,1730827201314,300.0,0.00019725,2]
[341356640,1730827203637,237.88570291,0.00015342,2]
[341356641,1730827376230,157.48,0.00015342,2]
[341356642,1730827508874,69147.05429709,0.00016,2]
[341356643,1730827632427,300.0,0.000158,5]
[341356644,1730827634530,700.0,0.000159,5]
[341356667,1730827727809,150.0,0.00013,2]
[341356668,1730827727828,0.55163878,0.00013,2]
[341356669,1730827728738,149.44836122,0.000107,2]
[341356670,1730827728759,105.52008795,0.000107,2]
[341356686,1730827773726,150.0,0.0002371,30]
[341356715,1730827831826,-2736.8428,0.000149,2]
[341356716,1730827831838,-300.0,0.00014998,2]
[341356717,1730827831847,-500.0,0.00014999,2]
[341356718,1730827831856,-500.0,0.00014999,2]
[341356719,1730827831865,-156.72606104,0.00014999,2]
[341356720,1730827831874,-500.0,0.00014999,2]
[341356721,1730827831883,-500.0,0.00014999,2]
[341356722,1730827831892,-10931.47017675,0.00015,2]
[341356723,1730827831903,-602.05,0.00015,2]
[341356724,1730827831942,-3494.288,0.00015,2]
[341356725,1730827832116,-4061.61858442,0.00015,2]
[341356728,1730827837879,-351.915,0.00015,2]
[341356731,1730827837996,-624.95907672,0.00015,2]
[341356732,1730827838058,-1000.18193579,0.00015,2]
[341356734,1730827839980,-1181.9922,0.00015,2]
[341356735,1730827840042,-669.86,0.00015,2]
[341356736,1730827840104,-801.81421915,0.00015,2]
[341356737,1730827840117,-1157.46453,0.00015,2]
[341356767,1730827844867,-538021.18253264,0.00015,2]
[341356768,1730827844877,-1141.0,0.00015525,2]
[341356769,1730827844886,-5974.22,0.000159,2]
[341356770,1730827844896,-179.20950124,0.00015973,2]
[341356771,1730827844905,-213.89226719,0.0001599,2]
[341356772,1730827844915,-213.89226719,0.0001599,2]
[341356773,1730827844925,-296.656096,0.00015999,2]
[341356774,1730827844934,-624684.66819346,0.00016,2]
[341356775,1730827844970,-305.115281,0.00016,2]
[341356788,1730827846084,-351.553744,0.00016,2]
[341356789,1730827846098,-740.07,0.00016,2]
[341356790,1730827846141,-7055.85559611,0.00016,2]
[341356798,1730828536307,-300.0,0.00014899,2]
[341356799,1730828536738,-986.69514578,0.000149,2]
[341356800,1730828609688,-40355.08035422,0.000149,2]
[341356801,1730828609711,-4020.2877,0.000149,2]
[341356802,1730828618331,-156.92,0.00015342,2]
[341356803,1730828618356,-158.62,0.00015342,2]
[341356804,1730828618379,-1000.0,0.000158,2]
[341356805,1730828618401,-2500.0,0.000158,2]
[341356806,1730828618422,-509.4871,0.000159,2]
[341356807,1730828618444,-2345.9422,0.000159,2]
[341356808,1730828618465,-876.9373,0.000159,2]
[341356809,1730828618487,-44814.0934,0.000159,2]
[341356810,1730828634153,-2651.89869465,0.00015899,2]
[341356811,1730828634176,-2972.73325113,0.000159,2]
[341356833,1730828838331,300.0,0.000159,5]
[341356882,1730829032051,-4927.00598988,0.0001584,2]
[341356884,1730829032064,-2607.0,0.0001584,2]
[341356944,1730829035776,-701.83,0.0001584,2]
[341356945,1730829036062,-3080.268505,0.0001584,2]
[341356954,1730829038136,-2001.66479999,0.0001584,2]
[341356972,1730829043201,-3747.99230294,0.0001584,2]
[341356974,1730829046221,-1755.4,0.0001584,2]
[341356975,1730829046422,-2105.99508,0.0001584,2]
[341356988,1730829676866,480.65535426,0.00018,30]
[341356990,1730829859077,150.0,0.00013639,2]
[341356991,1730829859099,150.0,0.00013639,2]
[341356992,1730829859119,150.0,0.00013639,2]
[341356993,1730829859144,150.0,0.00013639,2]
[341356994,1730829859165,150.0,0.00013639,2]
[341356995,1730829859187,17.25,0.00013639,2]
[341356996,1730830023624,300.0,0.000159,5]
[341357021,1730830232301,-2848.411494,0.00014982,2]
[341357022,1730830232311,-228.44916014,0.00015058,2]
[341357023,1730830232322,-250.0,0.00015128,2]
[341357024,1730830232331,-286.45116807,0.00015157,2]
[341357025,1730830232410,-13.54883193,0.00015157,2]
[341357026,1730830232419,-1619.35800346,0.00015158,2]
[341357027,1730830232514,-8429.96253558,0.00015158,2]
[341357048,1730830238308,-452.90409866,0.00015158,2]
[341357049,1730830238455,-703.25,0.00015158,2]
[341357050,1730830238467,-5812.40572101,0.00015158,2]
[341357051,1730830238478,-360.53268373,0.00015158,2]
[341357052,1730830238547,-382.19828148,0.00015158,2]
[341357190,1730830240268,-2136.05235002,0.00015158,2]
[341357192,1730830240279,-408.370001,0.00015158,2]
[341357201,1730830240367,-2458.98665725,0.00015158,2]
[341357202,1730830240378,-1135.97966781,0.00015158,2]
[341357203,1730830240387,-1212.57,0.00015159,2]
[341357204,1730830240396,-321.22615122,0.00015284,2]
[341357205,1730830240471,-2327.56537,0.00015284,2]
[341357799,1730830246497,-219.05,0.00014773,2]
[341357801,1730830246507,-518.08,0.00015284,2]
[341357814,1730830246625,-7023.80958001,0.00015284,2]
[341358016,1730830397837,150.0,0.0001335,2]
[341358017,1730830397857,150.0,0.0001335,2]
[341358018,1730830397880,150.0,0.0001335,2]
[341358019,1730830397900,150.0,0.0001335,2]
[341358020,1730830397919,150.0,0.0001335,2]
[341358021,1730830397939,6.01,0.0001335,2]
[341358022,1730830517179,-300.0,0.00027396,120]
[341358023,1730830517211,-300.0,0.00027396,120]
[341358024,1730830543072,-300.0,0.00030129,120]
[341358025,1730830543104,-300.0,0.00031999,120]
[341358026,1730830558805,-347.08,0.00032629,120]
[341358027,1730830558836,-426.23,0.00033151,120]
[341358028,1730830572340,-239.39330777,0.00034849,120]
[341358029,1730830572372,-347.08,0.00035213,120]
[341358030,1730830572408,-167.55,0.00035959,120]
[341358031,1730830585535,-347.08,0.00037797,120]
[341358032,1730830585566,-339.88524832,0.00037899,120]
[341358033,1730830602602,150.0,6e-05,2]
[341358034,1730830602621,18.0,6e-05,2]
[341358035,1730830680664,-984.58196118,0.00014773,2]
[341358038,1730830917176,-192.16,0.00014498,2]
[341358039,1730830970845,150.0,0.00012763,2]
[341358040,1730830970867,150.0,0.00012763,2]
[341358041,1730830970890,150.0,0.00012763,2]
[341358042,1730830970910,150.0,0.00012763,2]
[341358043,1730830970931,118.2,0.00012763,2]
[341358044,1730830981302,-1010.51210735,0.00014474,2]
[341358045,1730831082172,-611.35570101,0.00014513,2]
[341358046,1730831082192,-6737.84,0.00014572,2]
[341358047,1730831082213,-250.0,0.00014613,2]
[341358048,1730831082232,-200.0,0.00014651,2]
[341358049,1730831082253,-196.91,0.00014674,2]
[341358050,1730831082273,-150.0,0.00014681,2]
[341358051,1730831082395,-1143.0,0.00014727,2]
[341358052,1730831082419,-15.41803882,0.00014773,2]
[341358053,1730831082439,-162.34214351,0.00014773,2]
[341358054,1730831082459,-860.76,0.0001498,2]
[341358055,1730831082483,-718.2,0.00015027,2]
[341358056,1730831082503,-345.18231451,0.00015053,2]
[341358057,1730831082525,-23900.0,0.00015059,2]
[341358058,1730831082545,-300.0,0.00015094,2]
[341358059,1730831082564,-15703.13,0.00015095,2]
[341358060,1730831082584,-250.0,0.00015095,2]
[341358061,1730831082603,-606.28,0.00015188,2]
[341358062,1730831082623,-153.97,0.00015281,2]
[341358063,1730831082643,-2643.13,0.00015342,2]
[341358064,1730831082662,-823.17,0.00015342,2]
[341358065,1730831082682,-153.23,0.00015342,2]
[341358066,1730831082703,-157.58,0.00015342,2]
[341358067,1730831082724,-157.48,0.00015342,2]
[341358068,1730831082744,-156.92,0.00015342,2]
[341358069,1730831082764,-2480.96,0.0001541,2]
[341358070,1730831082784,-200.0,0.00015495,2]